[Event "Open NK Rapid 2025 bord 26-50"]
[Site "Helmond, Netherlands"]
[Date "2025.05.03"]
[Round "4.11"]
[White "Kolijn, David"]
[Black "Den Heijer, Rolinde"]
[Result "0-1"]
[TimeControl "15 min +5 sec increment"]
[WhiteFideId "1099213"]
[BlackFideId "1068300"]
[WhiteElo "1812"]
[BlackElo "1991"]

1. e4 {[%clk 00:15:08]} {[%emt 00:00:01]} c5 {[%clk 00:15:09]} {[%emt
00:00:02]} 2. Nf3 {[%clk 00:15:12]} {[%emt 00:00:01]} d6 {[%clk 00:15:13]}
{[%emt 00:00:02]} 3. d4 {[%clk 00:15:15]} {[%emt 00:00:01]} cxd4 {[%clk
00:15:17]} {[%emt 00:00:01]} 4. Nxd4 {[%clk 00:15:18]} {[%emt 00:00:01]} Nf6
{[%clk 00:15:21]} {[%emt 00:00:02]} 5. Nc3 {[%clk 00:15:22]} {[%emt 00:00:01]}
a6 {[%clk 00:15:25]} 6. Be3 {[%clk 00:15:10]} {[%emt 00:00:17]} e5 {[%clk
00:15:28]} {[%emt 00:00:01]} 7. Nf3 {[%clk 00:15:14]} {[%emt 00:00:02]} Be7
{[%clk 00:15:29]} {[%emt 00:00:04]} 8. Bc4 {[%clk 00:15:13]} {[%emt 00:00:06]}
O-O {[%clk 00:15:23]} {[%emt 00:00:11]} 9. O-O {[%clk 00:14:57]} {[%emt
00:00:21]} Qc7 {[%clk 00:15:07]} {[%emt 00:00:20]} 10. Bb3 {[%clk 00:14:55]}
{[%emt 00:00:08]} b5 {[%clk 00:14:50]} {[%emt 00:00:22]} 11. Nd5 {[%clk
00:12:26]} {[%emt 00:02:34]} Nxd5 {[%clk 00:14:49]} {[%emt 00:00:06]} 12. Bxd5
{[%clk 00:12:28]} {[%emt 00:00:02]} Bb7 {[%clk 00:14:33]} {[%emt 00:00:21]} 13.
c3 {[%clk 00:12:01]} {[%emt 00:00:32]} Nd7 {[%clk 00:14:24]} {[%emt 00:00:15]}
14. Bxb7 {[%clk 00:08:41]} {[%emt 00:03:25]} Qxb7 {[%clk 00:14:25]} {[%emt
00:00:03]} 15. Re1 {[%clk 00:07:20]} {[%emt 00:01:26]} Rfd8 {[%clk 00:13:39]}
{[%emt 00:00:52]} 16. Qc2 {[%clk 00:05:10]} {[%emt 00:02:16]} d5 {[%clk
00:12:29]} {[%emt 00:01:14]} 17. exd5 {[%clk 00:04:34]} {[%emt 00:00:40]} Qxd5
{[%clk 00:12:32]} {[%emt 00:00:03]} 18. a3 {[%clk 00:02:55]} {[%emt 00:01:44]}
Bf6 {[%clk 00:11:34]} {[%emt 00:01:02]} 19. Rad1 {[%clk 00:02:39]} {[%emt
00:00:22]} Qc6 {[%clk 00:11:18]} {[%emt 00:00:21]} 20. Rd2 {[%clk 00:02:05]}
{[%emt 00:00:38]} Nb6 {[%clk 00:10:45]} {[%emt 00:00:39]} 21. Bxb6 {[%clk
00:01:57]} {[%emt 00:00:14]} Qxb6 {[%clk 00:10:45]} {[%emt 00:00:04]} 22. Rxd8+
{[%clk 00:01:00]} Rxd8 {[%clk 00:10:41]} {[%emt 00:01:11]} 23. Nxe5 {[%clk
00:00:48]} {[%emt 00:00:17]} Qd6 {[%clk 00:10:16]} {[%emt 00:00:30]} 24. Nf3
{[%clk 00:00:36]} {[%emt 00:00:17]} h6 {[%clk 00:10:01]} {[%emt 00:00:20]} 25.
h3 {[%clk 00:00:37]} {[%emt 00:00:04]} a5 {[%clk 00:09:49]} {[%emt 00:00:17]}
26. Re2 {[%clk 00:00:30]} {[%emt 00:00:12]} Qc5 {[%clk 00:09:43]} {[%emt
00:00:11]} 27. Rd2 {[%clk 00:00:22]} {[%emt 00:00:13]} Rc8 {[%clk 00:09:42]}
{[%emt 00:00:06]} 28. Qd3 {[%clk 00:00:12]} {[%emt 00:00:15]} Re8 {[%clk
00:09:25]} {[%emt 00:00:22]} 29. Re2 {[%clk 00:00:11]} {[%emt 00:00:05]} Rd8
{[%clk 00:09:23]} {[%emt 00:00:08]} 30. Qe3 {[%clk 00:00:08]} {[%emt 00:00:08]}
Qc7 {[%clk 00:09:14]} {[%emt 00:00:14]} 31. Qe4 {[%clk 00:00:07]} {[%emt
00:00:05]} Qb6 {[%clk 00:09:02]} {[%emt 00:00:18]} 32. Qe3 {[%clk 00:00:10]}
{[%emt 00:00:02]} Qb8 {[%clk 00:08:58]} {[%emt 00:00:10]} 33. Rd2 {[%clk
00:00:13]} {[%emt 00:00:01]} Re8 {[%clk 00:08:59]} {[%emt 00:00:04]} 34. Qd3
{[%clk 00:00:14]} {[%emt 00:00:04]} b4 {[%clk 00:08:13]} {[%emt 00:00:51]} 35.
axb4 {[%clk 00:00:14]} {[%emt 00:00:06]} axb4 {[%clk 00:08:16]} {[%emt
00:00:01]} 36. c4 {[%clk 00:00:12]} {[%emt 00:00:07]} Bg5 {[%clk 00:08:00]}
{[%emt 00:00:21]} 37. Nxg5 {[%clk 00:00:15]} {[%emt 00:00:02]} Re1+ {[%clk
00:08:01]} {[%emt 00:00:04]} 0-1

[Event "Open NK Rapid 2025 bord 26-50"]
[Site "Helmond, Netherlands"]
[Date "2025.05.03"]
[Round "4.12"]
[White "Van Beek, Harmen"]
[Black "Hoornstra, Hans"]
[Result "1-0"]
[TimeControl "15 min +5 sec increment"]
[WhiteFideId "40100022"]
[BlackFideId "1036076"]
[WhiteElo "1806"]
[BlackElo "1976"]

1. e4 {[%clk 00:15:08]} {[%emt 00:00:02]} c5 {[%clk 00:15:09]} 2. Nf3 {[%clk
00:15:07]} {[%emt 00:00:07]} Nc6 {[%clk 00:15:13]} {[%emt 00:00:01]} 3. Bb5
{[%clk 00:15:10]} {[%emt 00:00:02]} Nf6 {[%clk 00:15:16]} {[%emt 00:00:02]} 4.
e5 {[%clk 00:14:50]} {[%emt 00:00:25]} Nd5 {[%clk 00:15:19]} 5. O-O {[%clk
00:14:43]} {[%emt 00:00:12]} g6 {[%clk 00:15:00]} {[%emt 00:00:24]} 6. Re1
{[%clk 00:14:45]} {[%emt 00:00:03]} Bg7 {[%emt 00:01:10]} 7. c3 {[%clk
00:14:34]} O-O {[%clk 00:13:45]} {[%emt 00:00:31]} 8. d4 {[%clk 00:14:32]}
{[%emt 00:00:07]} cxd4 {[%clk 00:12:54]} {[%emt 00:00:56]} 9. cxd4 {[%clk
00:14:27]} {[%emt 00:00:10]} a6 {[%clk 00:12:25]} {[%emt 00:00:33]} 10. Bf1
{[%clk 00:14:05]} {[%emt 00:00:27]} d6 {[%clk 00:12:03]} {[%emt 00:00:27]} 11.
Qb3 {[%clk 00:10:41]} {[%emt 00:03:29]} dxe5 {[%clk 00:12:05]} {[%emt
00:00:03]} 12. dxe5 {[%clk 00:10:35]} {[%emt 00:00:12]} Be6 {[%clk 00:12:00]}
{[%emt 00:00:09]} 13. Ng5 {[%clk 00:08:09]} {[%emt 00:02:31]} Nd4 {[%clk
00:08:27]} {[%emt 00:03:37]} 14. Qd1 {[%clk 00:05:42]} {[%emt 00:02:33]} Qb6
{[%clk 00:06:35]} {[%emt 00:01:58]} 15. Nxe6 {[%clk 00:04:52]} {[%emt
00:00:55]} fxe6 {[%clk 00:06:00]} {[%emt 00:00:39]} 16. Nc3 {[%clk 00:03:34]}
{[%emt 00:01:24]} Nc6 {[%clk 00:03:55]} {[%emt 00:02:10]} 17. Nxd5 {[%clk
00:02:19]} {[%emt 00:01:20]} Qxf2+ {[%clk 00:03:55]} {[%emt 00:00:04]} 18. Kh1
{[%clk 00:02:21]} {[%emt 00:00:04]} Bxe5 {[%clk 00:02:58]} {[%emt 00:01:02]} 19.
Be3 {[%clk 00:01:18]} {[%emt 00:01:08]} Qh4 {[%clk 00:02:51]} {[%emt 00:00:11]}
20. Bg1 {[%clk 00:00:55]} {[%emt 00:00:28]} exd5 {[%clk 00:01:27]} {[%emt
00:01:29]} 21. Qxd5+ {[%clk 00:00:59]} {[%emt 00:00:02]} Kh8 {[%clk 00:01:21]}
{[%emt 00:00:10]} 22. Rxe5 {[%clk 00:01:02]} {[%emt 00:00:02]} Nxe5 {[%clk
00:00:57]} {[%emt 00:00:30]} 23. Qxe5+ {[%clk 00:01:06]} {[%emt 00:00:01]} Qf6
{[%clk 00:00:51]} {[%emt 00:00:10]} 24. Bd4 {[%clk 00:00:45]} {[%emt 00:00:26]}
Kg8 {[%clk 00:00:22]} {[%emt 00:00:35]} 25. Bc4+ {[%clk 00:00:32]} {[%emt
00:00:18]} Rf7 {[%clk 00:00:14]} {[%emt 00:00:13]} 26. Bxf7+ {[%clk 00:00:25]}
{[%emt 00:00:12]} Qxf7 {[%clk 00:00:18]} 27. Qh8# {[%clk 00:00:28]} {[%emt
00:00:02]} 1-0

[Event "Open NK Rapid 2025 bord 26-50"]
[Site "Helmond, Netherlands"]
[Date "2025.05.03"]
[Round "4.13"]
[White "Landman, Renzo"]
[Black "Ten Kate, Gustav"]
[Result "1-0"]
[TimeControl "15 min +5 sec increment"]
[WhiteFideId "40106306"]
[BlackFideId "1095781"]
[WhiteElo "1975"]
[BlackElo "1800"]

1. e4 {[%clk 00:15:06]} {[%emt 00:00:03]} c5 {[%clk 00:14:57]} {[%emt
00:00:14]} 2. Nf3 {[%clk 00:15:07]} {[%emt 00:00:03]} d6 {[%clk 00:15:01]}
{[%emt 00:00:02]} 3. c3 {[%clk 00:14:54]} {[%emt 00:00:18]} Nf6 {[%clk
00:15:04]} {[%emt 00:00:02]} 4. h3 {[%clk 00:14:55]} {[%emt 00:00:03]} g6
{[%clk 00:15:07]} {[%emt 00:00:02]} 5. Bd3 {[%clk 00:14:56]} {[%emt 00:00:04]}
Bg7 {[%clk 00:15:11]} {[%emt 00:00:02]} 6. Bc2 {[%clk 00:14:59]} {[%emt
00:00:02]} O-O {[%clk 00:14:46]} {[%emt 00:00:30]} 7. O-O {[%clk 00:15:00]}
{[%emt 00:00:03]} e5 {[%clk 00:14:40]} {[%emt 00:00:12]} 8. d4 {[%clk
00:15:02]} {[%emt 00:00:03]} Nc6 {[%clk 00:14:35]} {[%emt 00:00:10]} 9. d5
{[%clk 00:14:48]} {[%emt 00:00:19]} Ne7 {[%clk 00:14:36]} {[%emt 00:00:04]} 10.
c4 {[%clk 00:13:48]} {[%emt 00:01:05]} Ne8 {[%clk 00:14:30]} {[%emt 00:00:10]}
11. Nc3 {[%clk 00:12:39]} {[%emt 00:01:14]} f5 {[%clk 00:14:31]} {[%emt
00:00:05]} 12. exf5 {[%clk 00:11:12]} {[%emt 00:01:31]} gxf5 {[%clk 00:14:34]}
{[%emt 00:00:02]} 13. Ng5 {[%clk 00:09:57]} {[%emt 00:01:20]} Rf6 {[%clk
00:12:50]} {[%emt 00:01:50]} 14. Qh5 {[%clk 00:05:06]} {[%emt 00:04:55]} h6
{[%clk 00:11:33]} {[%emt 00:01:23]} 15. Ne6 {[%clk 00:05:00]} {[%emt 00:00:11]}
Bxe6 {[%clk 00:11:21]} {[%emt 00:00:17]} 16. dxe6 {[%clk 00:05:02]} {[%emt
00:00:03]} Rxe6 {[%clk 00:10:29]} {[%emt 00:00:56]} 17. Bxf5 {[%clk 00:04:56]}
{[%emt 00:00:11]} Nxf5 {[%clk 00:10:31]} {[%emt 00:00:03]} 18. Qxf5 {[%clk
00:04:59]} {[%emt 00:00:02]} Rf6 {[%clk 00:10:06]} {[%emt 00:00:30]} 19. Qe4
{[%clk 00:04:57]} {[%emt 00:00:07]} Nc7 {[%clk 00:10:02]} {[%emt 00:00:09]} 20.
Qxb7 {[%clk 00:04:46]} {[%emt 00:00:16]} Rg6 {[%clk 00:09:20]} {[%emt
00:00:48]} 21. Qe4 {[%clk 00:04:34]} {[%emt 00:00:16]} Rf6 {[%clk 00:07:23]}
{[%emt 00:02:02]} 22. Rd1 {[%clk 00:04:24]} {[%emt 00:00:14]} Qe7 {[%clk
00:07:15]} {[%emt 00:00:15]} 23. Nd5 {[%clk 00:04:11]} {[%emt 00:00:18]} Qf7
{[%clk 00:06:43]} {[%emt 00:00:37]} 24. Nxc7 {[%clk 00:04:00]} {[%emt
00:00:16]} Rc8 {[%clk 00:06:32]} {[%emt 00:00:15]} 25. Nd5 {[%clk 00:03:58]}
{[%emt 00:00:07]} Rxf2 {[%clk 00:06:32]} {[%emt 00:00:06]} 26. Ne7+ {[%clk
00:03:26]} {[%emt 00:00:36]} Qxe7 {[%clk 00:06:20]} {[%emt 00:00:17]} 27. Kxf2
{[%clk 00:03:29]} {[%emt 00:00:02]} Rf8+ {[%clk 00:06:25]} 28. Kg1 {[%clk
00:03:27]} {[%emt 00:00:06]} Qf6 {[%clk 00:06:28]} {[%emt 00:00:02]} 29. Be3
{[%clk 00:03:25]} {[%emt 00:00:06]} 1-0

[Event "Open NK Rapid 2025 bord 26-50"]
[Site "Helmond, Netherlands"]
[Date "2025.05.03"]
[Round "4.14"]
[White "Fransen, Jean-Paul"]
[Black "Cakmak, Metehan Tugra"]
[Result "1-0"]
[TimeControl "15 min +5 sec increment"]
[WhiteFideId "40101487"]
[BlackFideId "44583885"]
[WhiteElo "1964"]
[BlackElo "1787"]

1. e4 {[%clk 00:15:09]} {[%emt 00:00:01]} c5 {[%clk 00:15:10]} {[%emt
00:00:01]} 2. b4 {[%clk 00:15:13]} {[%emt 00:00:01]} cxb4 {[%clk 00:15:13]}
{[%emt 00:00:01]} 3. a3 {[%clk 00:15:17]} {[%emt 00:00:02]} bxa3 {[%clk
00:15:13]} {[%emt 00:00:04]} 4. d4 {[%clk 00:15:21]} {[%emt 00:00:01]} e6
{[%clk 00:15:14]} {[%emt 00:00:05]} 5. Bxa3 {[%clk 00:15:24]} {[%emt 00:00:01]}
Bxa3 {[%clk 00:15:17]} {[%emt 00:00:03]} 6. Nxa3 {[%clk 00:15:28]} Ne7 {[%clk
00:15:09]} {[%emt 00:00:12]} 7. Nb5 {[%clk 00:15:19]} {[%emt 00:00:13]} Qb6
{[%clk 00:14:25]} {[%emt 00:00:50]} 8. e5 {[%clk 00:15:07]} {[%emt 00:00:17]}
O-O {[%clk 00:14:21]} {[%emt 00:00:10]} 9. Bd3 {[%clk 00:15:04]} {[%emt
00:00:07]} a6 {[%clk 00:14:06]} {[%emt 00:00:20]} 10. Nf3 {[%clk 00:15:03]}
{[%emt 00:00:05]} Nbc6 {[%clk 00:13:55]} {[%emt 00:00:17]} 11. Nd6 {[%clk
00:14:24]} {[%emt 00:00:44]} g6 {[%clk 00:13:32]} {[%emt 00:00:28]} 12. c3
{[%clk 00:14:20]} {[%emt 00:00:08]} Qc7 {[%clk 00:13:18]} {[%emt 00:00:20]} 13.
Qd2 {[%clk 00:14:20]} {[%emt 00:00:05]} Kg7 {[%clk 00:12:56]} {[%emt 00:00:27]}
14. h4 {[%clk 00:14:11]} {[%emt 00:00:14]} b5 {[%clk 00:12:38]} {[%emt
00:00:23]} 15. h5 {[%clk 00:13:51]} {[%emt 00:00:24]} Rh8 {[%clk 00:12:18]}
{[%emt 00:00:26]} 16. hxg6 {[%clk 00:13:52]} {[%emt 00:00:04]} hxg6 {[%clk
00:12:14]} {[%emt 00:00:09]} 17. Rxh8 {[%clk 00:13:55]} {[%emt 00:00:02]} Kxh8
{[%clk 00:12:17]} {[%emt 00:00:02]} 18. Qh6+ {[%clk 00:13:57]} {[%emt
00:00:02]} Kg8 {[%clk 00:12:18]} {[%emt 00:00:05]} 19. Ng5 {[%clk 00:13:58]}
{[%emt 00:00:03]} Nd8 {[%clk 00:12:09]} {[%emt 00:00:15]} 20. Ke2 {[%clk
00:11:55]} {[%emt 00:02:08]} Qxc3 {[%clk 00:09:00]} {[%emt 00:03:13]} 21. Rh1
{[%clk 00:09:22]} {[%emt 00:02:38]} Qb2+ {[%clk 00:09:01]} {[%emt 00:00:05]} 22.
Kf3 {[%clk 00:09:12]} {[%emt 00:00:14]} Bb7+ {[%clk 00:08:45]} {[%emt
00:00:23]} 23. Kg3 {[%clk 00:08:56]} {[%emt 00:00:20]} Nf5+ {[%clk 00:08:30]}
{[%emt 00:00:20]} 24. Nxf5 {[%clk 00:08:39]} {[%emt 00:00:21]} 1-0

[Event "Open NK Rapid 2025 bord 26-50"]
[Site "Helmond, Netherlands"]
[Date "2025.05.03"]
[Round "4.15"]
[White "Timmer, Michel"]
[Black "Oostvogels, Niek"]
[Result "1-0"]
[TimeControl "15 min +5 sec increment"]
[WhiteFideId "40104524"]
[BlackFideId "1051725"]
[WhiteElo "1796"]
[BlackElo "1949"]

1. e4 {[%clk 00:15:08]} {[%emt 00:00:02]} d5 {[%clk 00:15:09]} {[%emt
00:00:02]} 2. d4 {[%clk 00:15:12]} {[%emt 00:00:01]} dxe4 {[%clk 00:15:09]}
{[%emt 00:00:06]} 3. Nc3 {[%clk 00:15:15]} {[%emt 00:00:01]} Nf6 {[%clk
00:15:12]} {[%emt 00:00:02]} 4. Bg5 {[%clk 00:15:18]} {[%emt 00:00:01]} Nbd7
{[%clk 00:14:41]} {[%emt 00:00:37]} 5. f3 {[%clk 00:15:12]} {[%emt 00:00:11]}
exf3 {[%clk 00:13:52]} {[%emt 00:00:54]} 6. Nxf3 {[%clk 00:15:14]} {[%emt
00:00:03]} c6 {[%clk 00:13:55]} {[%emt 00:00:02]} 7. Bd3 {[%clk 00:14:51]}
{[%emt 00:00:28]} e6 {[%clk 00:12:51]} {[%emt 00:01:09]} 8. O-O {[%clk
00:14:49]} {[%emt 00:00:06]} Be7 {[%clk 00:12:55]} {[%emt 00:00:02]} 9. Qe1
{[%clk 00:14:45]} {[%emt 00:00:09]} Nd5 {[%clk 00:11:26]} {[%emt 00:01:34]} 10.
Bxe7 {[%clk 00:14:00]} {[%emt 00:00:50]} Qxe7 {[%clk 00:11:26]} {[%emt
00:00:05]} 11. Qg3 {[%clk 00:13:24]} {[%emt 00:00:40]} N7f6 {[%clk 00:09:37]}
{[%emt 00:01:55]} 12. Ne5 {[%clk 00:13:17]} {[%emt 00:00:12]} Bd7 {[%clk
00:07:07]} {[%emt 00:02:35]} 13. Nxd5 {[%clk 00:13:12]} {[%emt 00:00:10]} Nxd5
{[%clk 00:04:21]} {[%emt 00:02:52]} 14. Rxf7 {[%clk 00:13:11]} {[%emt
00:00:05]} Qb4 {[%clk 00:03:38]} {[%emt 00:00:47]} 15. Rxd7 {[%clk 00:12:40]}
{[%emt 00:00:37]} Qxd4+ {[%clk 00:02:39]} {[%emt 00:01:03]} 16. Kh1 {[%clk
00:12:40]} {[%emt 00:02:17]} 1-0

[Event "Open NK Rapid 2025 bord 26-50"]
[Site "Helmond, Netherlands"]
[Date "2025.05.03"]
[Round "4.16"]
[White "Alhasan, Husam"]
[Black "Wolff, Christoph"]
[Result "0-1"]
[TimeControl "15 min +5 sec increment"]
[WhiteFideId "11515090"]
[BlackFideId "4648706"]
[WhiteElo "1795"]
[BlackElo "1941"]

1. d4 {[%clk 00:15:07]} {[%emt 00:00:02]} Nf6 {[%clk 00:15:09]} {[%emt
00:00:02]} 2. c4 {[%clk 00:15:11]} {[%emt 00:00:01]} g6 {[%clk 00:15:12]}
{[%emt 00:00:02]} 3. Nc3 {[%clk 00:15:14]} {[%emt 00:00:01]} d5 {[%clk
00:15:16]} {[%emt 00:00:02]} 4. cxd5 {[%clk 00:15:10]} {[%emt 00:00:08]} Nxd5
{[%clk 00:15:19]} {[%emt 00:00:02]} 5. e4 {[%clk 00:15:14]} {[%emt 00:00:02]}
Nxc3 {[%clk 00:15:22]} {[%emt 00:00:02]} 6. bxc3 {[%clk 00:15:17]} {[%emt
00:00:02]} Bg7 {[%clk 00:15:25]} {[%emt 00:00:02]} 7. Be3 {[%clk 00:14:56]}
{[%emt 00:00:26]} c5 {[%clk 00:15:26]} {[%emt 00:00:03]} 8. Qd2 {[%clk
00:14:24]} {[%emt 00:00:37]} O-O {[%clk 00:15:22]} {[%emt 00:00:09]} 9. Nf3
{[%clk 00:13:58]} {[%emt 00:00:31]} Bg4 {[%clk 00:15:06]} {[%emt 00:00:21]} 10.
Be2 {[%clk 00:14:01]} {[%emt 00:00:03]} Nc6 {[%clk 00:15:00]} {[%emt 00:00:11]}
11. d5 {[%clk 00:13:24]} {[%emt 00:00:42]} Bxf3 {[%clk 00:14:48]} {[%emt
00:00:17]} 12. gxf3 {[%clk 00:12:38]} {[%emt 00:00:51]} Qa5 {[%clk 00:14:23]}
{[%emt 00:00:29]} 13. Rc1 {[%clk 00:12:08]} {[%emt 00:00:35]} Rfd8 {[%clk
00:14:04]} {[%emt 00:00:23]} 14. Qb2 {[%clk 00:09:37]} {[%emt 00:02:37]} Nb4
{[%clk 00:13:03]} {[%emt 00:01:06]} 15. a3 {[%clk 00:08:43]} {[%emt 00:01:00]}
Na6 {[%clk 00:12:38]} {[%emt 00:00:30]} 16. Bxa6 {[%clk 00:07:58]} {[%emt
00:00:49]} bxa6 {[%clk 00:12:25]} {[%emt 00:00:17]} 17. Bd2 {[%clk 00:07:48]}
{[%emt 00:00:16]} Qb5 {[%clk 00:11:59]} {[%emt 00:00:31]} 18. Qc2 {[%clk
00:07:18]} {[%emt 00:00:34]} Rab8 {[%clk 00:11:55]} {[%emt 00:00:09]} 19. Bf4
{[%clk 00:06:10]} {[%emt 00:01:13]} Rb7 {[%clk 00:11:44]} {[%emt 00:00:17]} 20.
a4 {[%clk 00:05:01]} {[%emt 00:01:15]} Qc4 {[%clk 00:11:17]} {[%emt 00:00:31]}
21. Kd2 {[%clk 00:03:13]} {[%emt 00:01:53]} e6 {[%clk 00:10:32]} {[%emt
00:00:50]} 22. Qd3 {[%clk 00:02:28]} {[%emt 00:00:50]} Rb2+ {[%clk 00:09:13]}
{[%emt 00:01:25]} 23. Ke3 {[%clk 00:01:48]} {[%emt 00:00:45]} Qxd3+ {[%clk
00:08:57]} {[%emt 00:00:20]} 24. Kxd3 {[%clk 00:01:51]} {[%emt 00:00:02]} exd5
{[%clk 00:09:01]} {[%emt 00:00:02]} 25. Ke3 {[%clk 00:00:46]} {[%emt 00:01:10]}
d4+ {[%clk 00:08:50]} {[%emt 00:00:16]} 26. Kd3 {[%clk 00:00:43]} {[%emt
00:00:08]} dxc3+ {[%clk 00:08:47]} {[%emt 00:00:07]} 27. Kc4 {[%clk 00:00:47]}
{[%emt 00:00:02]} Rxf2 {[%clk 00:07:53]} {[%emt 00:00:59]} 28. Rhf1 {[%clk
00:00:46]} {[%emt 00:00:05]} Rd4+ {[%clk 00:06:48]} {[%emt 00:01:10]} 29. Kxc5
{[%clk 00:00:38]} {[%emt 00:00:14]} Rxf1 {[%clk 00:06:51]} {[%emt 00:00:02]} 30.
Rxf1 {[%clk 00:00:41]} {[%emt 00:00:02]} Rxa4 {[%clk 00:06:54]} {[%emt
00:00:02]} 31. Bb8 {[%clk 00:00:23]} {[%emt 00:00:22]} c2 {[%clk 00:06:48]}
{[%emt 00:00:11]} 32. Rc1 {[%clk 00:00:08]} {[%emt 00:00:20]} Bf8+ {[%clk
00:06:49]} {[%emt 00:00:04]} 33. Bd6 {[%clk 00:00:08]} {[%emt 00:00:06]} Bxd6+
{[%clk 00:06:32]} {[%emt 00:00:21]} 34. Kxd6 {[%clk 00:00:12]} {[%emt
00:00:02]} Rc4 {[%clk 00:06:36]} 35. e5 {[%clk 00:00:00]} {[%emt 00:00:12]} a5
{[%clk 00:06:36]} {[%emt 00:00:02]} 0-1